bitfinex-derivatives/quotes_ETHF0:USTF0_20241004
["timestamp","ask_amount","ask_price","bid_price","bid_amount"]
[1728047008055,0.41771,2394.6,2394.4,7.91667023]
[1728047008236,0.41771,2394.6,2394.5,0.41772]
[1728047008453,0.41772,2394.5,2394.4,7.91666023]
[1728047008742,0.77739786,2394.5,2394.4,7.91666023]
[1728047009537,0.41776,2394.3,2394.2,0.41777]
[1728047009745,0.35967786,2394.3,2394.0,7.49893023]
[1728047009942,0.35967786,2394.3,2394.0,7.91673023]
[1728047009943,0.41779,2394.1,2394.0,7.91673023]
[1728047010142,0.77746786,2394.1,2394.0,7.49893023]
[1728047010840,2.9537151,2394.1,2394.0,7.49893023]
[1728047012244,1.40420786,2394.1,2393.7,0.41786]
[1728047012443,0.41785,2393.8,2393.6,0.41787]
[1728047012636,0.41785,2393.8,2393.5,10.70673023]
[1728047012637,0.41788,2393.6,2393.5,7.91682023]
[1728047012838,0.77755786,2393.6,2393.5,7.49893023]
[1728047013341,0.35967786,2393.6,2393.5,7.91683023]
[1728047014335,0.35967786,2393.6,2393.1,3.2078]
[1728047014546,4.42792,2393.4,2393.1,10.70673023]
[1728047014850,0.41801,2392.9,2392.7,3.62584]
[1728047015143,0.35967786,2392.8,2392.7,11.12477023]
[1728047015749,0.35967786,2392.8,2392.7,20.88593023]
[1728047015943,2.17635529,2393.3,2392.7,20.88593023]
[1728047016243,4.27657241,2394.0,2393.0,3.2078]
[1728047016244,2.70268859,2393.8,2393.0,3.2078]
[1728047016450,2.70268859,2393.8,2392.8,9.2475]
[1728047016451,2.70268859,2394.1,2393.6,3.2078]
[1728047016747,0.4178,2394.1,2393.8,0.41784]
[1728047016939,4.01,2394.3,2393.6,8.17096107]
[1728047017141,0.41778,2394.2,2393.9,0.41781]
[1728047017542,0.41778,2394.2,2393.6,8.17096107]
[1728047017543,7.3846,2394.1,2393.5,1.0756]
[1728047017748,0.41782,2394.0,2393.7,0.41786]
[1728047017946,0.41782,2394.0,2393.5,5.93876107]
[1728047017947,3.6256,2394.1,2393.6,0.41788]
[1728047018146,0.41776,2394.3,2394.0,0.41781]
[1728047018346,0.41778,2394.2,2393.8,0.41783]
[1728047018550,0.41778,2394.2,2393.8,3.62564]
[1728047018743,0.4178,2394.1,2393.8,8.07096107]
[1728047019148,0.41776,2394.3,2393.8,8.07096107]
[1728047019454,0.41779,2394.2,2393.8,8.48880107]
[1728047019752,0.41779,2394.1,2393.8,8.07096107]
[1728047019951,0.41782,2394.0,2393.8,4.86316107]
[1728047020351,4.01,2394.1,2393.8,4.86316107]
[1728047020545,4.4278,2394.1,2393.8,5.28100107]
[1728047020745,0.41782,2394.0,2393.8,4.86316107]
[1728047021053,0.41782,2394.0,2393.1,2.16951]
[1728047021054,1.04453,2394.0,2393.2,3.2078]
[1728047021248,4.01,2393.6,2393.2,3.2078]
[1728047021449,4.01,2393.6,2393.2,4.86316107]
[1728047021853,0.41791,2393.5,2393.2,4.86316107]
[1728047022353,0.41791,2393.5,2393.2,5.28110107]
[1728047022354,0.4179,2393.5,2393.2,5.28110107]
[1728047022648,0.4179,2393.5,2393.2,5.28111107]
[1728047022855,0.4179,2393.5,2393.2,5.28110107]
[1728047023347,4.01,2393.6,2393.2,5.28110107]
[1728047023651,4.01,2393.6,2393.2,4.86316107]
[1728047023854,0.4179,2393.5,2393.2,5.28110107]
[1728047024044,0.41792,2393.4,2393.2,4.86316107]
[1728047024555,5.05472,2393.6,2393.2,4.86316107]
[1728047024761,0.41792,2393.4,2393.2,4.86316107]
[1728047025051,4.01,2393.6,2393.2,4.86316107]
[1728047025255,4.42789,2393.6,2393.2,4.86316107]
[1728047025451,4.42789,2393.6,2393.2,5.28110107]
[1728047025759,0.4179,2393.5,2393.2,5.28110107]
[1728047025957,2.70268859,2393.4,2393.3,0.41793]
[1728047026353,2.70268859,2393.4,2393.3,5.28109107]
[1728047026964,2.70268859,2393.5,2393.3,5.28109107]
[1728047027261,2.70268859,2393.4,2393.3,5.28109107]
[1728047027683,2.70268859,2393.4,2393.3,4.86316107]
[1728047027847,2.70268859,2393.4,2393.3,5.28109107]
[1728047028054,0.35614677,2393.4,2393.3,5.28109107]
[1728047028461,3.05883536,2393.4,2393.3,5.28109107]
[1728047028660,3.05883536,2393.4,2393.3,4.86316107]
[1728047028856,3.05883536,2393.4,2393.3,5.28109107]
[1728047029255,3.05883536,2393.4,2393.3,4.86316107]
[1728047029774,3.08215588,2393.4,2393.3,5.28109107]
[1728047030169,0.35614677,2393.4,2393.3,5.28109107]
[1728047030368,0.77406677,2393.4,2393.3,4.86316107]
[1728047030570,0.35614677,2393.4,2393.3,5.28109107]
[1728047031061,0.35614677,2393.4,2393.3,4.86316107]
[1728047031264,0.35614677,2393.4,2393.3,5.28109107]
[1728047031878,0.35614677,2393.4,2393.3,4.86316107]
[1728047032377,0.77406677,2393.4,2393.3,4.86316107]
[1728047034188,0.41792,2393.4,2393.3,4.86316107]
[1728047034375,8.54490632,2393.4,2392.9,3.2078]
[1728047034671,0.41799,2393.0,2392.9,4.86316107]
[1728047035174,0.35651105,2393.0,2392.6,3.2078]
[1728047035372,0.35651105,2393.0,2392.6,12.25016107]
[1728047035576,6.73715582,2393.3,2392.9,3.2078]
[1728047035875,0.41798,2393.1,2392.9,0.41799]
[1728047036064,3.08369075,2393.2,2392.9,4.86316107]
[1728047036065,0.35653493,2393.0,2392.9,4.86316107]
[1728047036268,0.77452493,2393.0,2392.9,4.86316107]
[1728047036464,7.09369075,2393.0,2392.9,0.418]
[1728047036672,0.77452493,2393.0,2392.9,4.86316107]
[1728047036871,0.35653493,2393.0,2392.9,4.86316107]
[1728047037071,0.35653493,2393.0,2392.9,5.28116107]
[1728047037585,3.14510582,2393.2,2393.0,0.41797]
[1728047037772,0.35655294,2393.0,2392.9,5.28116107]
[1728047038269,0.41803,2392.8,2392.6,3.62585]
[1728047038475,0.35655294,2392.7,2392.6,8.48901107]
[1728047038674,0.35655294,2392.7,2392.6,12.66821107]
[1728047038876,0.35655294,2392.9,2392.6,12.25016107]
[1728047039071,0.35655294,2392.8,2392.7,0.41804]
[1728047039268,0.35655294,2392.8,2392.7,11.28120107]
[1728047039575,0.35655294,2392.8,2392.7,15.46040107]
[1728047040879,0.35654731,2392.8,2392.7,9.46040107]
[1728047041884,0.35654731,2392.8,2392.7,5.28120107]
[1728047042088,0.35654731,2392.8,2392.7,9.46040107]
[1728047042375,0.35654731,2392.8,2392.7,5.28120107]
[1728047042579,0.77456731,2392.8,2392.7,4.86316107]
[1728047042780,3.50173313,2392.8,2392.6,3.2078]
[1728047042975,3.08467458,2392.7,2392.6,8.48901107]
[1728047043175,0.35654731,2392.7,2392.6,8.48901107]
[1728047043380,6.73812727,2393.0,2392.8,0.41802]
[1728047043575,6.73812727,2393.0,2392.8,4.86316107]
[1728047043576,0.35649558,2392.9,2392.8,4.86316107]
[1728047043782,0.35648801,2392.9,2392.8,4.86316107]
[1728047043979,0.35648801,2392.9,2392.8,5.28118107]
[1728047044174,0.71299019,2392.9,2392.8,5.28118107]
[1728047044375,3.44111746,2392.9,2392.8,5.28118107]
[1728047044584,0.35650218,2392.9,2392.8,5.28118107]
[1728047046689,0.35650218,2392.9,2392.8,15.46038107]
[1728047047187,1.0885,2393.5,2393.1,1.04493]
[1728047047379,0.77427604,2393.4,2393.2,0.41794]
[1728047047575,0.35635604,2393.3,2393.2,0.41794]
[1728047047774,0.35635604,2393.3,2393.2,5.28110107]
[1728047048074,0.35635604,2393.4,2393.2,4.86316107]
[1728047048279,0.35635604,2393.3,2393.2,5.28111107]
[1728047048581,1.0446,2393.9,2393.5,1.04475]
[1728047048582,2.72812727,2393.9,2393.5,1.04475]
[1728047048779,2.72812727,2393.9,2393.8,0.41785]
[1728047048981,0.35635077,2393.9,2393.8,4.86316107]
[1728047049279,4.78418077,2393.9,2393.8,5.28101107]
[1728047049482,11.27207804,2393.9,2393.4,3.2078]
[1728047049688,11.27207804,2393.9,2393.4,5.28106107]
[1728047049689,4.42789,2393.6,2393.4,5.28106107]
[1728047049979,4.79674727,2393.8,2393.4,4.86316107]
[1728047049980,0.35644855,2393.5,2393.4,4.86316107]
[1728047050175,0.35644855,2393.5,2393.4,5.28108107]
[1728047052917,2.72812727,2393.7,2393.4,5.28108107]
[1728047053194,0.35673223,2393.6,2393.4,8.07096107]
[1728047053397,2.72812727,2393.7,2393.6,0.41788]
[1728047053587,0.35682384,2393.7,2393.6,0.41788]
[1728047053788,0.35682384,2393.7,2393.6,9.45864107]
[1728047054385,0.35682384,2393.7,2393.6,5.28104107]
[1728047054682,0.35682384,2393.7,2393.6,4.86316107]
[1728047054880,0.77468384,2393.7,2393.6,4.86316107]
[1728047055785,0.77468384,2393.7,2393.4,0.41791]
[1728047056093,0.41805,2392.7,2392.2,0.209]
[1728047056291,4.01,2392.3,2392.2,4.86316107]
[1728047056694,7.09942862,2392.3,2392.2,4.86316107]
[1728047056887,4.36726608,2392.3,2392.2,4.86316107]
[1728047057089,4.36726608,2392.3,2391.5,3.2078]
[1728047057090,8.54726608,2392.3,2391.5,3.2078]
[1728047057392,2.731316,2392.1,2391.8,0.41819]
[1728047057593,0.35726608,2392.0,2391.8,5.28135107]
[1728047057790,0.35726608,2391.9,2391.8,5.28135107]
[1728047057990,0.35726608,2391.9,2391.8,4.86316107]
[1728047058193,4.36726608,2391.9,2391.8,4.86316107]
[1728047058893,0.35726608,2391.9,2391.8,4.86316107]
[1728047059489,4.36726608,2391.9,2391.5,3.2078]
[1728047059710,4.01,2391.9,2391.5,8.07096107]
[1728047059896,0.35673428,2391.8,2391.5,8.07096107]
[1728047060091,0.35673428,2391.7,2391.5,8.07096107]
[1728047060305,0.35673428,2391.6,2391.5,8.07096107]
[1728047061004,0.35673428,2391.6,2391.5,18.25256107]
[1728047061193,0.35673428,2391.6,2391.5,12.25256107]
[1728047061390,0.35673428,2391.6,2391.5,4.86316107]
[1728047063803,0.35608254,2391.6,2391.5,4.86316107]
[1728047064194,0.35608254,2391.6,2391.5,5.28141107]
[1728047064395,0.35608254,2391.6,2391.5,9.46301107]
[1728047064593,0.35608254,2391.6,2391.5,9.04476107]
[1728047064799,0.35593305,2391.6,2391.5,9.04476107]
[1728047064998,5.1127,2392.0,2391.5,9.04476107]
[1728047065303,0.4182,2391.8,2391.5,4.86316107]
[1728047065603,0.35592052,2391.7,2391.5,4.86316107]
[1728047065801,5.1127,2392.0,2391.5,4.86316107]
[1728047066107,4.42823,2391.7,2391.5,4.86316107]
[1728047066408,0.35586998,2391.6,2391.5,4.86316107]
[1728047066612,0.41823,2391.6,2391.5,4.86316107]
[1728047066795,0.77407355,2391.6,2391.5,4.86316107]
[1728047067298,0.35584355,2391.6,2391.5,4.86316107]
[1728047067806,0.77407355,2391.6,2391.5,4.86316107]
[1728047068102,0.41826,2391.5,2391.0,4.70052]
[1728047068295,0.41826,2391.5,2391.0,9.14536107]
[1728047068296,0.35584355,2391.4,2391.0,9.14536107]
[1728047068495,4.01,2391.5,2391.0,9.14536107]
[1728047068901,4.01,2391.5,2391.3,0.41828]
[1728047069093,4.01,2391.5,2391.2,0.41829]
[1728047069301,4.01,2391.5,2391.2,5.28145107]
[1728047069606,4.01,2391.9,2391.3,7.3894]
[1728047069800,0.35547843,2391.8,2391.5,0.41823]
[1728047070031,4.01,2391.9,2391.6,0.41822]
[1728047070196,4.01,2391.9,2391.6,5.28138107]
[1728047070399,0.4182,2391.8,2391.6,4.86316107]
[1728047070593,4.01,2391.9,2391.6,4.86316107]
[1728047070594,4.42818,2391.9,2391.6,4.86316107]
[1728047070803,4.42818,2391.9,2391.6,5.28138107]
[1728047070804,0.35541049,2391.8,2391.6,5.28138107]
[1728047071001,4.01,2391.9,2391.6,5.28138107]
[1728047071002,4.01,2391.9,2391.6,4.86316107]
[1728047071197,1.1027,2392.0,2391.8,0.41819]
[1728047071392,1.1027,2392.0,2391.6,4.86316107]
[1728047071393,0.35536594,2391.9,2391.6,4.86316107]
[1728047071599,4.01,2392.1,2391.6,8.07096107]
[1728047071798,6.44619,2392.4,2392.0,0.41816]
[1728047072007,0.35533637,2392.3,2392.2,0.41812]
[1728047072311,4.42804,2392.7,2392.3,0.41809]
[1728047072600,0.35528972,2392.6,2392.4,0.41809]
[1728047072802,4.42805,2392.7,2392.4,4.86316107]
[1728047073001,0.41807,2392.5,2392.4,4.86316107]
[1728047073507,0.41807,2392.5,2391.7,4.27553]
[1728047073508,0.35534854,2392.5,2391.7,5.3621]
[1728047073710,0.35534854,2392.5,2391.8,0.41819]
[1728047073711,4.01,2392.3,2391.8,0.41819]
[1728047073930,4.42812,2392.3,2391.9,0.41817]
[1728047074101,4.01,2392.3,2391.7,10.22526107]
[1728047074301,0.77355406,2392.2,2391.8,0.41819]
[1728047074501,0.41813,2392.2,2391.9,0.41817]
[1728047074908,0.41813,2392.2,2391.9,5.28133107]
[1728047075209,0.41815,2392.1,2391.9,4.86316107]
[1728047075503,0.41813,2392.2,2391.9,5.28132107]
[1728047075705,0.41815,2392.1,2391.9,4.86316107]
[1728047076004,1.0263,2392.3,2391.9,4.86316107]
[1728047076205,0.77359072,2392.2,2391.9,5.28133107]
[1728047076509,0.41813,2392.2,2391.9,5.28133107]
[1728047076706,4.42815,2392.1,2391.9,4.86316107]
[1728047077112,4.01,2392.1,2391.9,5.28133107]
[1728047077407,4.42815,2392.1,2391.9,4.86316107]
[1728047077598,4.01,2392.1,2392.0,0.41816]
[1728047077803,4.01,2392.5,2392.4,0.41809]
[1728047078005,4.01,2392.5,2392.4,5.28125107]
[1728047078203,0.41807,2392.6,2392.4,4.86316107]
[1728047078507,0.35547107,2392.5,2392.4,4.86316107]
[1728047078698,4.78354107,2392.5,2392.4,4.86316107]
[1728047078899,4.78354107,2392.5,2392.2,0.41811]
[1728047078900,1.04523,2392.4,2392.0,3.2078]
[1728047079110,4.42814,2392.1,2392.0,8.07096107]
[1728047079412,4.78361107,2392.1,2392.0,8.07096107]
[1728047080208,4.36547107,2392.1,2392.0,8.07096107]
[1728047080519,4.78361107,2392.1,2392.0,4.86316107]
[1728047080707,4.78377559,2392.1,2392.0,4.86316107]
[1728047081306,0.41821,2391.8,2391.3,3.2078]
[1728047081508,0.41819,2391.9,2391.6,0.41822]
[1728047081806,1.0901,2392.0,2391.9,0.41818]
[1728047082013,0.3556084,2392.0,2391.6,3.2078]
[1728047082213,4.42814,2392.1,2391.9,0.41817]
[1728047082408,0.35558212,2392.0,2391.6,8.07096107]
[1728047082614,4.01,2392.1,2392.0,0.41816]
[1728047082809,4.36558518,2392.1,2391.6,8.07096107]
[1728047083015,0.35558518,2392.0,2391.8,0.41818]
[1728047083211,0.41817,2392.0,2391.7,0.4182]
[1728047083410,4.01,2392.1,2391.6,8.48918107]
[1728047083411,0.41818,2391.9,2391.6,8.48918107]
[1728047083610,5.05537,2392.1,2391.6,8.07096107]
[1728047083813,0.77377455,2392.0,2391.8,0.41819]
[1728047084134,0.41817,2392.0,2391.7,0.41821]
[1728047084618,0.41817,2392.0,2391.7,5.28137107]
[1728047085415,0.41819,2391.9,2391.7,4.86316107]
[1728047085612,3.26,2391.8,2391.7,4.86316107]
[1728047085812,3.26,2391.8,2391.7,5.28137107]
[1728047086115,3.26,2391.8,2391.7,9.46217107]
[1728047086417,3.26,2391.8,2391.7,4.86316107]
[1728047086418,4.03385086,2391.8,2391.7,4.86316107]
[1728047087226,0.41826,2391.5,2391.3,3.2078]
[1728047087520,0.41826,2391.5,2391.3,8.07096107]
[1728047087521,3.26,2391.4,2391.3,8.07096107]
[1728047087714,3.26,2391.4,2391.3,12.67084107]
[1728047088324,2.08624,2391.7,2391.3,12.25256107]
[1728047088623,3.26,2391.4,2391.3,8.07096107]
[1728047088922,3.26,2391.4,2391.3,4.86316107]
[1728047088923,3.61566054,2391.4,2391.3,4.86316107]
[1728047089315,4.03387892,2391.4,2391.3,4.86316107]
[1728047090922,3.67826,2391.4,2391.3,4.86316107]
[1728047091121,4.0338353,2391.4,2391.3,4.86316107]
[1728047091322,0.41832,2391.2,2391.0,3.2078]
[1728047091525,3.67832,2391.1,2391.0,8.07096107]
[1728047091714,3.26,2391.1,2391.0,8.48929107]
[1728047091918,3.26,2391.2,2391.0,12.25336107]
[1728047092126,3.26,2391.2,2391.1,0.41832]
[1728047092625,3.26,2391.2,2391.1,5.28148107]
[1728047092828,3.6783,2391.2,2391.1,4.86316107]
[1728047093026,4.03381718,2391.2,2391.1,4.86316107]
[1728047093221,0.41832,2391.1,2391.0,3.2078]
[1728047093426,4.66134718,2391.1,2390.7,3.62619]
[1728047093627,3.26,2390.8,2390.7,8.07096107]
[1728047093832,4.03399566,2390.8,2390.7,8.07096107]
[1728047094063,3.67837,2390.8,2390.7,8.07096107]
[1728047094236,3.67837,2390.8,2390.7,4.86316107]
[1728047094731,0.41843,2390.5,2390.1,4.148]
[1728047094929,3.26,2390.2,2390.1,5.28165107]
[1728047095432,3.67847,2390.2,2390.1,4.86316107]
[1728047095637,0.41854,2389.9,2389.6,3.62637]
[1728047095846,3.26,2389.7,2389.6,8.07096107]
[1728047096134,3.67856,2389.7,2389.6,8.07096107]
[1728047096329,3.67856,2389.7,2389.6,4.86316107]
[1728047096330,3.61561933,2389.7,2389.6,4.86316107]
[1728047096535,3.26,2389.7,2389.6,5.28174107]
[1728047097336,1.1202,2390.0,2389.7,0.41855]
[1728047097337,3.26,2389.8,2389.7,0.41855]
[1728047097536,1.1202,2390.0,2389.7,0.41855]
[1728047097729,1.53871,2390.0,2389.7,5.28171107]
[1728047098128,0.77401737,2389.9,2389.7,5.28171107]
[1728047098432,1.1202,2390.0,2389.3,1.0979]
[1728047098433,4.02,2389.8,2389.3,1.0979]
[1728047098642,0.35544774,2389.7,2389.6,0.41858]
[1728047098936,1.53872,2390.0,2389.4,3.2078]
[1728047099137,4.02,2390.2,2389.7,3.2078]
[1728047099330,0.41852,2390.0,2389.8,0.41854]
[1728047099537,4.02,2390.2,2389.8,4.86316107]
[1728047099833,0.41848,2390.2,2389.8,4.86316107]
[1728047100027,6.13712,2390.4,2389.8,4.86316107]
[1728047100350,0.41848,2390.2,2389.9,0.41851]
[1728047100534,0.35539322,2390.1,2389.8,4.86316107]
[1728047100736,4.02,2390.4,2390.3,0.41846]
[1728047100932,6.1914,2390.9,2390.3,8.07096107]
[1728047101239,0.35581759,2390.8,2390.3,8.07096107]
[1728047101428,4.02,2391.2,2390.5,0.41841]
[1728047101653,4.02,2390.7,2390.5,4.86316107]
[1728047101835,0.4184,2390.6,2390.5,4.86316107]
[1728047102138,0.7742333,2390.6,2390.5,4.86316107]
[1728047102340,0.7742333,2390.6,2390.0,3.2078]
[1728047102341,0.41844,2390.4,2390.0,3.6263]
[1728047102536,0.3558333,2390.3,2390.2,0.41847]
[1728047102843,1.51071,2390.6,2390.2,0.41847]
[1728047103037,0.35585667,2390.5,2390.3,3.2078]
[1728047103231,1.51071,2390.6,2390.3,3.62625]
[1728047103441,5.939116,2391.1,2390.3,8.07096107]
[1728047103442,4.43836,2390.9,2390.3,8.07096107]
[1728047103633,0.35579033,2390.8,2390.3,8.07096107]
[1728047103833,1.0923,2391.1,2390.8,0.41836]
[1728047103834,1.51062,2391.1,2390.8,0.41836]
[1728047104137,1.51062,2391.1,2390.6,3.2078]
[1728047104138,4.43826,2391.5,2390.9,0.41835]
[1728047104346,0.35572211,2391.4,2391.3,0.41828]
[1728047104637,0.35572211,2391.4,2391.3,5.28144107]
[1728047105337,4.02,2391.8,2391.6,0.41822]
[1728047105536,4.02,2391.8,2391.3,5.98036107]
[1728047105738,0.35564829,2391.7,2391.5,0.41825]
[1728047106035,0.35564829,2391.6,2391.5,0.41825]
[1728047106234,0.35564829,2391.6,2391.5,5.28141107]
[1728047106428,0.35564829,2391.6,2391.5,4.86316107]
[1728047106831,0.35564829,2391.6,2391.5,5.28141107]
[1728047108034,1.1067,2392.3,2391.8,0.41819]
[1728047108035,4.02,2392.0,2391.8,0.41819]
[1728047108236,4.02,2392.0,2391.6,0.41822]
[1728047108237,0.77387734,2391.9,2391.6,0.41822]
[1728047108535,0.35569734,2391.8,2391.6,0.41822]
[1728047108738,4.02,2392.0,2391.9,0.41818]
[1728047109036,4.02,2392.0,2391.6,4.86316107]
[1728047109236,0.35567831,2391.9,2391.6,4.86316107]
[1728047109437,0.35568081,2391.8,2391.7,0.41821]
[1728047109634,0.35567742,2391.8,2391.7,0.41821]
[1728047109940,0.77386742,2391.8,2391.7,4.86316107]
[1728047110631,0.35567742,2391.8,2391.7,4.86316107]
[1728047110830,4.37567742,2391.8,2391.7,4.86316107]
[1728047111135,4.79386742,2391.8,2391.7,4.86316107]
[1728047111340,8.55647742,2391.8,2391.5,3.2078]
[1728047111635,0.77389742,2391.7,2391.5,8.07096107]
[1728047111827,0.41821,2391.7,2391.5,8.07096107]
[1728047112033,0.35570905,2391.6,2391.5,4.86316107]
[1728047112234,0.77393905,2391.6,2391.5,4.86316107]
[1728047112435,0.35570905,2391.6,2391.5,5.28141107]
[1728047112632,5.49961,2391.8,2391.5,5.28141107]
[1728047112837,0.35570635,2391.7,2391.5,5.28141107]
[1728047113142,0.35570435,2391.6,2391.5,4.86316107]
[1728047113339,0.41823,2391.7,2391.5,4.86316107]
[1728047113841,0.3556942,2391.6,2391.5,4.86316107]
[1728047114636,4.53730171,2391.6,2391.5,0.41825]
[1728047114944,1.04543,2392.0,2391.5,9.46301107]
[1728047114945,4.02,2392.0,2391.5,9.46301107]
[1728047115130,0.35565525,2391.9,2391.8,0.41819]
[1728047115334,0.35565525,2391.9,2391.8,5.28135107]
[1728047115740,4.02,2392.0,2391.8,5.28135107]
[1728047115935,0.35563351,2391.9,2391.8,4.86316107]
[1728047116234,0.41822,2391.7,2391.4,0.41825]
[1728047116445,4.02,2391.6,2391.4,4.86316107]
[1728047116737,4.43824,2391.6,2391.4,4.86316107]
[1728047116938,4.43824,2391.6,2391.4,5.28142107]
[1728047117139,4.02,2391.6,2391.4,4.86316107]
[1728047117332,0.77395103,2391.5,2391.4,4.86316107]
[1728047117529,0.35570103,2391.5,2391.3,3.2078]
[1728047117742,0.77396103,2391.4,2391.3,8.07096107]
[1728047118833,0.77396103,2391.4,2391.3,3.2078]
[1728047119145,0.41831,2391.2,2391.0,0.41833]
[1728047119341,5.58300103,2391.4,2391.0,0.41833]
[1728047119342,4.37570103,2391.1,2391.0,5.28149107]
[1728047119940,0.35570103,2391.1,2391.0,5.28149107]
[1728047120141,4.02,2391.3,2391.1,0.4183]
[1728047120332,0.35587402,2391.2,2391.1,5.28148107]
[1728047120545,0.35587402,2391.2,2391.1,4.86316107]
[1728047120943,0.35587402,2391.2,2391.1,5.28148107]
[1728047121240,0.35587402,2391.2,2391.1,4.86316107]
[1728047121438,0.77417402,2391.2,2391.1,4.86316107]
[1728047121637,3.61587402,2391.2,2390.6,4.2738]
[1728047121842,3.61587402,2391.2,2390.6,6.34756107]
[1728047121843,3.26,2390.7,2390.6,6.34756107]
[1728047122049,3.26,2390.7,2390.6,4.86316107]
[1728047122339,4.03436798,2390.7,2390.6,4.86316107]
[1728047122844,0.41843,2390.5,2390.3,3.2078]
[1728047123044,4.03441798,2390.4,2390.3,4.86316107]
[1728047123539,4.79441798,2390.4,2390.3,4.86316107]
[1728047124641,4.79441798,2390.4,2389.9,3.2078]
[1728047124642,8.55917798,2390.4,2389.9,3.2078]
[1728047124848,0.35597798,2390.3,2389.9,8.07096107]
[1728047125049,4.02,2390.1,2389.9,4.86316107]
[1728047125239,4.02,2390.1,2390.0,0.41851]
[1728047125541,4.37600007,2390.1,2390.0,0.41851]
[1728047125740,4.37600007,2390.1,2390.0,5.28167107]
[1728047125941,4.37600007,2390.1,2390.0,4.86316107]
[1728047126144,4.37600007,2390.1,2389.7,1.1553]
[1728047126348,1.047,2390.2,2389.7,1.1553]
[1728047126349,4.02,2389.8,2389.7,4.86316107]
[1728047126643,4.37600007,2389.8,2389.7,4.86316107]
[1728047126947,4.79454007,2389.8,2389.7,4.86316107]
[1728047127341,5.42240007,2389.8,2389.2,1.0815]
[1728047127541,4.02,2389.5,2389.3,0.41862]
[1728047127746,4.43861,2389.5,2389.2,6.36331107]
[1728047127951,0.41862,2389.4,2389.2,4.86316107]
[1728047128245,4.02,2389.5,2389.2,4.86316107]
[1728047128560,0.71152103,2389.4,2389.2,4.86316107]
[1728047128749,0.35575953,2389.4,2389.2,5.28181107]
[1728047129142,0.35575953,2389.4,2389.2,4.86316107]
[1728047129848,0.35575953,2389.4,2389.3,0.41863]
[1728047130147,0.35575953,2389.4,2389.3,5.28179107]
[1728047130452,0.35575953,2389.4,2389.3,9.46739107]
[1728047131248,4.02,2390.1,2389.3,10.60423]
[1728047131441,4.02,2390.1,2389.6,0.41858]
[1728047131654,4.02,2390.1,2390.0,0.41851]
[1728047131846,4.02,2390.1,2389.5,9.11745107]
[1728047132061,4.02,2390.1,2389.8,0.41853]
[1728047132546,4.02,2390.1,2389.8,5.28170107]
[1728047133151,4.02,2390.1,2389.8,4.86316107]
[1728047133352,4.02,2390.1,2390.0,0.41851]
[1728047133556,4.02,2390.1,2389.8,4.86316107]
[1728047133748,4.02,2390.1,2390.0,0.41851]
[1728047134253,4.02,2390.1,2390.0,5.28167107]
[1728047135062,4.02,2390.4,2390.0,9.04716107]
[1728047135246,4.02,2390.4,2390.3,0.41846]
[1728047135445,1.1037,2390.6,2390.2,3.2078]
[1728047135446,4.02,2390.6,2390.2,3.2078]
[1728047135643,4.02,2390.9,2390.2,9.11714107]
[1728047135849,4.02,2390.9,2390.8,0.41837]
[1728047136152,0.41831,2391.2,2391.1,0.41832]
[1728047136153,4.02,2391.2,2391.1,0.41832]
[1728047136351,4.02,2391.2,2390.7,1.04595]
[1728047136352,4.02,2391.2,2390.6,2.16212]
[1728047136654,4.02,2390.9,2390.7,0.41838]
[1728047136851,0.41839,2390.7,2390.6,4.86316107]
[1728047137243,4.1832,2390.7,2390.2,3.2078]
[1728047137554,4.02,2390.6,2390.2,3.2078]
[1728047137742,4.02,2390.6,2390.5,0.41842]
[1728047138142,4.02,2390.6,2390.5,4.86316107]
[1728047138351,4.4384,2390.6,2390.3,0.41844]
[1728047138547,4.02,2390.6,2390.2,8.07096107]
[1728047139451,4.02,2390.6,2390.5,0.41842]
[1728047140054,4.02,2390.6,2390.5,5.28158107]
[1728047140249,4.02,2390.6,2390.5,4.86316107]
[1728047140448,4.4384,2390.6,2390.5,4.86316107]
[1728047140758,0.41843,2390.5,2390.2,3.62626]
[1728047141054,8.2032,2390.6,2390.2,8.07096107]
[1728047141055,0.41845,2390.4,2390.2,8.07096107]
[1728047142050,0.41843,2390.5,2390.2,8.48942107]
[1728047142259,0.41844,2390.4,2390.2,8.48943107]
[1728047142560,0.41844,2390.4,2390.2,8.07096107]
[1728047142759,0.41844,2390.4,2390.2,8.48943107]
[1728047143054,5.06603,2390.6,2390.2,3.2078]
[1728047143271,4.02,2390.3,2390.2,8.48943107]
[1728047143753,4.02,2390.3,2390.2,3.62627]
[1728047144162,4.02,2390.3,2390.2,8.48943107]
[1728047144358,2.1632,2390.8,2390.2,18.25496107]
[1728047144585,2.1632,2390.8,2390.2,8.07096107]
[1728047144856,4.02,2390.6,2390.2,8.07096107]
[1728047145056,4.02,2390.3,2390.2,8.07096107]
[1728047145257,0.41848,2390.2,2390.0,0.4185]
[1728047145458,4.02,2390.1,2390.0,5.28166107]
[1728047146057,4.02,2390.6,2390.0,9.04716107]
[1728047146356,4.02,2390.6,2390.5,0.41842]
[1728047146758,4.02,2390.9,2390.7,0.41839]
[1728047146961,0.35163318,2390.8,2390.7,0.41839]
[1728047147161,0.35163318,2390.8,2390.7,5.28155107]
[1728047147357,0.35163318,2390.8,2390.7,4.86316107]
[1728047147658,0.35163318,2390.8,2390.7,5.28155107]
[1728047149673,4.02,2390.9,2390.7,4.86316107]
[1728047149969,6.1914,2391.2,2390.8,3.2078]
[1728047150262,4.02,2391.2,2391.1,0.41832]
[1728047150655,4.02,2391.2,2391.1,5.28148107]
[1728047150858,4.02,2391.4,2391.3,0.41828]
[1728047151159,4.37155204,2391.4,2391.1,4.86316107]
[1728047151360,4.02,2391.4,2391.2,0.4183]
[1728047151663,4.43827,2391.4,2391.2,0.4183]
[1728047151972,4.43827,2391.4,2391.2,5.28146107]
[1728047152156,4.02,2391.4,2391.2,4.86316107]
[1728047152466,4.02,2391.7,2391.3,1.04571]
[1728047152766,4.02,2391.7,2391.6,0.41823]
[1728047153269,4.02,2391.7,2391.6,5.28139107]
[1728047153455,4.02,2392.0,2391.8,0.41818]
[1728047153659,4.02,2392.0,2391.6,4.86316107]
[1728047153861,4.43817,2392.0,2391.8,0.41819]